[Event "Late-Titled-Tuesday-Blitz-April-16-2024"]
[Site "Chess.com"]
[Date "2024.04.16"]
[Round "7"]
[White "ural58"]
[Black "Meri-Arabidze"]
[Result "1-0"]
[WhiteElo "2526"]
[BlackElo "2645"]
[TimeControl "180+1"]
[EndTime "15:13:37 PDT"]
[Termination "ural58 won on time"]

1. e4 {[%clk 0:03:00.9]} 1... c5 {[%clk 0:03:00.2]} 2. b3 {[%clk 0:02:59.9]}
2... a6 {[%clk 0:02:56.5]} 3. d4 {[%clk 0:02:58.8]} 3... cxd4 {[%clk 0:02:56]}
4. Qxd4 {[%clk 0:02:58.8]} 4... Nc6 {[%clk 0:02:56]} 5. Qd2 {[%clk 0:02:58.9]}
5... Nf6 {[%clk 0:02:55.1]} 6. Nc3 {[%clk 0:02:58.8]} 6... e5 {[%clk 0:02:50.1]}
7. Bb2 {[%clk 0:02:57.9]} 7... Be7 {[%clk 0:02:48.2]} 8. O-O-O {[%clk
0:02:57.1]} 8... O-O {[%clk 0:02:47.6]} 9. f4 {[%clk 0:02:56.6]} 9... d6 {[%clk
0:02:45.9]} 10. Nf3 {[%clk 0:02:56.4]} 10... Bg4 {[%clk 0:02:43.2]} 11. h3
{[%clk 0:02:53.2]} 11... Bxf3 {[%clk 0:02:41.1]} 12. gxf3 {[%clk 0:02:53.8]}
12... Nd4 {[%clk 0:02:39.2]} 13. Bc4 {[%clk 0:02:37]} 13... b5 {[%clk
0:02:32.9]} 14. Bd5 {[%clk 0:02:36.6]} 14... Rc8 {[%clk 0:02:32.9]} 15. fxe5
{[%clk 0:02:34.8]} 15... dxe5 {[%clk 0:02:30.8]} 16. f4 {[%clk 0:02:34.4]} 16...
Nxd5 {[%clk 0:02:14]} 17. Nxd5 {[%clk 0:02:33.7]} 17... Rxc2+ {[%clk 0:02:02.1]}
18. Qxc2 {[%clk 0:02:32.7]} 18... Nxc2 {[%clk 0:02:02.7]} 19. Kxc2 {[%clk
0:02:18.9]} 19... Bh4 {[%clk 0:01:46.6]} 20. fxe5 {[%clk 0:02:15.4]} 20... Qc8+
{[%clk 0:01:37.3]} 21. Kb1 {[%clk 0:02:15.3]} 21... Qe6 {[%clk 0:01:37.1]} 22.
Rhg1 {[%clk 0:02:11.1]} 22... h6 {[%clk 0:01:29.6]} 23. Rg4 {[%clk 0:02:09.9]}
23... Bg5 {[%clk 0:01:27]} 24. Rdg1 {[%clk 0:02:05.7]} 24... g6 {[%clk
0:01:14.4]} 25. h4 {[%clk 0:02:05.1]} 25... Be7 {[%clk 0:01:07.1]} 26. Nf4
{[%clk 0:02:03.9]} 26... Qb6 {[%clk 0:00:17.1]} 27. Nxg6 {[%clk 0:01:58.6]}
27... Bc5 {[%clk 0:00:07.8]} 28. Nxf8+ {[%clk 0:01:15.2]} 28... Kxf8 {[%clk
0:00:08.7]} 29. Rf1 {[%clk 0:01:08.3]} 29... Bd4 {[%clk 0:00:06.7]} 30. Rgf4
{[%clk 0:01:07.8]} 30... Bxb2 {[%clk 0:00:06.6]} 31. Rxf7+ {[%clk 0:01:07.8]}
31... Ke8 {[%clk 0:00:05.8]} 32. Rf8+ {[%clk 0:01:08]} 32... Ke7 {[%clk
0:00:06]} 33. R1f7+ {[%clk 0:01:08.4]} 33... Ke6 {[%clk 0:00:04.9]} 34. Rf6+
{[%clk 0:01:09]} 1-0

[Event "Late-Titled-Tuesday-Blitz-April-16-2024"]
[Site "Chess.com"]
[Date "2024.04.16"]
[Round "7"]
[White "WilsonPalencia21"]
[Black "laskakid"]
[Result "0-1"]
[WhiteElo "2544"]
[BlackElo "2369"]
[TimeControl "180+1"]
[EndTime "15:13:38 PDT"]
[Termination "laskakid won on time"]

1. d4 {[%clk 0:02:25.4]} 1... d6 {[%clk 0:02:59.7]} 2. Nf3 {[%clk 0:02:25.1]}
2... g6 {[%clk 0:02:57.1]} 3. c4 {[%clk 0:02:25.2]} 3... Bg7 {[%clk 0:02:55.4]}
4. Nc3 {[%clk 0:02:25.4]} 4... Nf6 {[%clk 0:02:55]} 5. e4 {[%clk 0:02:25.4]}
5... O-O {[%clk 0:02:54.8]} 6. Be2 {[%clk 0:02:21]} 6... e5 {[%clk 0:02:54.8]}
7. O-O {[%clk 0:02:20.2]} 7... exd4 {[%clk 0:02:53.9]} 8. Nxd4 {[%clk
0:02:19.9]} 8... Re8 {[%clk 0:02:54.2]} 9. f3 {[%clk 0:02:20.1]} 9... c6 {[%clk
0:02:54.1]} 10. Kh1 {[%clk 0:02:18.8]} 10... Nbd7 {[%clk 0:02:53.6]} 11. Bg5
{[%clk 0:02:18.2]} 11... Qb6 {[%clk 0:02:51.9]} 12. Na4 {[%clk 0:02:18]} 12...
Qa5 {[%clk 0:02:40.4]} 13. Bd2 {[%clk 0:02:12.7]} 13... Qd8 {[%clk 0:02:37.7]}
14. Bg5 {[%clk 0:02:11.7]} 14... Qa5 {[%clk 0:02:36.6]} 15. Bd2 {[%clk
0:02:11.2]} 15... Qd8 {[%clk 0:02:36.3]} 16. Nc2 {[%clk 0:02:02.9]} 16... Nc5
{[%clk 0:02:26.4]} 17. Nxc5 {[%clk 0:01:59.7]} 17... dxc5 {[%clk 0:02:26.8]} 18.
Bc3 {[%clk 0:02:00.1]} 18... Be6 {[%clk 0:02:17]} 19. Ne3 {[%clk 0:01:59.9]}
19... Qe7 {[%clk 0:02:03.6]} 20. e5 {[%clk 0:01:49.6]} 20... Nd7 {[%clk
0:02:00.3]} 21. f4 {[%clk 0:01:49.5]} 21... f6 {[%clk 0:01:51.6]} 22. Bg4 {[%clk
0:01:38.8]} 22... fxe5 {[%clk 0:01:45.3]} 23. Bxe6+ {[%clk 0:01:37.8]} 23...
Qxe6 {[%clk 0:01:45.1]} 24. f5 {[%clk 0:01:38.7]} 24... Qe7 {[%clk 0:01:37.7]}
25. fxg6 {[%clk 0:01:16]} 25... hxg6 {[%clk 0:01:37]} 26. Qg4 {[%clk 0:01:15.5]}
26... Nf8 {[%clk 0:01:35.2]} 27. Qg3 {[%clk 0:00:57.4]} 27... Rad8 {[%clk
0:01:28.2]} 28. Ng4 {[%clk 0:00:55.4]} 28... Rd4 {[%clk 0:01:18.7]} 29. Bxd4
{[%clk 0:00:20.4]} 29... cxd4 {[%clk 0:01:18.4]} 30. Qf2 {[%clk 0:00:17.4]}
30... e4 {[%clk 0:01:14.4]} 31. Nf6+ {[%clk 0:00:15.9]} 31... Bxf6 {[%clk
0:01:14.6]} 32. Qxf6 {[%clk 0:00:16.8]} 32... Qxf6 {[%clk 0:01:09.3]} 33. Rxf6
{[%clk 0:00:17.7]} 33... e3 {[%clk 0:01:08.1]} 34. Kg1 {[%clk 0:00:17.2]} 34...
d3 {[%clk 0:01:05.8]} 35. Rd6 {[%clk 0:00:16.9]} 35... d2 {[%clk 0:01:05.2]} 0-1

[Event "Late-Titled-Tuesday-Blitz-April-16-2024"]
[Site "Chess.com"]
[Date "2024.04.16"]
[Round "7"]
[White "Durarbayli"]
[Black "GothamChess"]
[Result "1-0"]
[WhiteElo "2884"]
[BlackElo "2694"]
[TimeControl "180+1"]
[EndTime "15:13:40 PDT"]
[Termination "Durarbayli won by resignation"]

1. e4 {[%clk 0:03:00.9]} 1... d5 {[%clk 0:02:59.6]} 2. exd5 {[%clk 0:02:59.9]}
2... Qxd5 {[%clk 0:03:00.5]} 3. Nc3 {[%clk 0:02:58.1]} 3... Qa5 {[%clk
0:03:01.1]} 4. Nf3 {[%clk 0:02:53.1]} 4... Nf6 {[%clk 0:03:00.9]} 5. Bc4 {[%clk
0:02:50.8]} 5... Bf5 {[%clk 0:03:00.6]} 6. O-O {[%clk 0:02:47.7]} 6... e6 {[%clk
0:03:00.6]} 7. Re1 {[%clk 0:02:44.5]} 7... Nc6 {[%clk 0:02:56.2]} 8. Bb5 {[%clk
0:02:39.9]} 8... Qb6 {[%clk 0:02:38.6]} 9. Ne5 {[%clk 0:02:16.8]} 9... Bd6
{[%clk 0:02:22]} 10. d4 {[%clk 0:01:53.9]} 10... O-O {[%clk 0:01:59.3]} 11. Be3
{[%clk 0:01:53.4]} 11... Nd5 {[%clk 0:01:22.2]} 12. Bxc6 {[%clk 0:01:52.3]}
12... Nxc3 {[%clk 0:01:14.6]} 13. bxc3 {[%clk 0:01:47.1]} 13... Bxe5 {[%clk
0:01:12.1]} 14. Bf3 {[%clk 0:01:47.1]} 14... Bf6 {[%clk 0:01:03.7]} 15. Rb1
{[%clk 0:01:46.6]} 15... Qa5 {[%clk 0:01:01.9]} 16. Bxb7 {[%clk 0:01:36.1]}
16... Rab8 {[%clk 0:00:58.2]} 17. Qd2 {[%clk 0:01:32.1]} 17... Qxa2 {[%clk
0:00:52.4]} 18. Ra1 {[%clk 0:01:30.6]} 18... Qb2 {[%clk 0:00:31.8]} 19. Bc6
{[%clk 0:01:24.8]} 19... Qxc2 {[%clk 0:00:17.9]} 20. Qxc2 {[%clk 0:01:24.3]}
20... Bxc2 {[%clk 0:00:18.8]} 21. Rec1 {[%clk 0:01:18.3]} 21... Bg6 {[%clk
0:00:14.3]} 22. Rxa7 {[%clk 0:01:18.7]} 22... Rfc8 {[%clk 0:00:08.9]} 23. Bd7
{[%clk 0:01:18.8]} 23... Rd8 {[%clk 0:00:09.1]} 24. Rxc7 {[%clk 0:01:18.5]}
24... Rb2 {[%clk 0:00:08.6]} 25. h3 {[%clk 0:01:12.7]} 25... h6 {[%clk
0:00:07.1]} 26. c4 {[%clk 0:01:09.5]} 26... Be4 {[%clk 0:00:04.6]} 27. c5 {[%clk
0:01:06.6]} 27... Bg5 {[%clk 0:00:02.8]} 28. Bxg5 {[%clk 0:01:03.2]} 28... hxg5
{[%clk 0:00:03.7]} 29. c6 {[%clk 0:01:03.4]} 29... Kf8 {[%clk 0:00:04.3]} 30.
Rc8 {[%clk 0:00:58.3]} 30... Rxc8 {[%clk 0:00:04.7]} 31. Bxc8 {[%clk 0:00:59.2]}
31... Rb8 {[%clk 0:00:01.9]} 32. Ba6 {[%clk 0:00:55.6]} 32... Bxc6 {[%clk
0:00:01.1]} 33. Rxc6 {[%clk 0:00:54.7]} 1-0

[Event "Late-Titled-Tuesday-Blitz-April-16-2024"]
[Site "Chess.com"]
[Date "2024.04.16"]
[Round "7"]
[White "GMMikhailKazakov"]
[Black "Vincefm"]
[Result "1-0"]
[WhiteElo "2504"]
[BlackElo "2334"]
[TimeControl "180+1"]
[EndTime "15:13:40 PDT"]
[Termination "GMMikhailKazakov won by checkmate"]

1. e4 {[%clk 0:03:00.9]} 1... e5 {[%clk 0:02:58.6]} 2. Nf3 {[%clk 0:03:00.5]}
2... Nc6 {[%clk 0:02:58.9]} 3. Bb5 {[%clk 0:02:58.5]} 3... a6 {[%clk 0:02:58.5]}
4. Ba4 {[%clk 0:02:57.9]} 4... d6 {[%clk 0:02:58.5]} 5. h3 {[%clk 0:02:55.4]}
5... Bd7 {[%clk 0:02:57.1]} 6. c3 {[%clk 0:02:55.6]} 6... g6 {[%clk 0:02:57]} 7.
d4 {[%clk 0:02:55.3]} 7... Bg7 {[%clk 0:02:57.5]} 8. Be3 {[%clk 0:02:54.8]} 8...
Nge7 {[%clk 0:02:57.5]} 9. Nbd2 {[%clk 0:02:53]} 9... O-O {[%clk 0:02:57.4]} 10.
O-O {[%clk 0:02:52.4]} 10... h6 {[%clk 0:02:57.7]} 11. Re1 {[%clk 0:02:46]}
11... f5 {[%clk 0:02:56.8]} 12. dxe5 {[%clk 0:02:44.3]} 12... dxe5 {[%clk
0:02:56.3]} 13. exf5 {[%clk 0:02:38.8]} 13... gxf5 {[%clk 0:02:56.2]} 14. Bc5
{[%clk 0:02:35.4]} 14... e4 {[%clk 0:02:15.6]} 15. Nh4 {[%clk 0:02:15.4]} 15...
Ne5 {[%clk 0:02:14.7]} 16. Bb3+ {[%clk 0:02:05.7]} 16... Kh7 {[%clk 0:02:11]}
17. Bc2 {[%clk 0:01:41.8]} 17... Bf6 {[%clk 0:01:22.6]} 18. Nxe4 {[%clk
0:01:32.6]} 18... fxe4 {[%clk 0:01:21.3]} 19. Rxe4 {[%clk 0:01:24.8]} 19... Kg7
{[%clk 0:00:56.1]} 20. Qe2 {[%clk 0:01:18.5]} 20... N5g6 {[%clk 0:00:12.8]} 21.
Nxg6 {[%clk 0:01:13.7]} 21... Nxg6 {[%clk 0:00:12.2]} 22. Qh5 {[%clk 0:01:11.2]}
22... Bg5 {[%clk 0:00:06.9]} 23. Rd4 {[%clk 0:00:40.4]} 23... b6 {[%clk
0:00:03.5]} 24. Qxg6+ {[%clk 0:00:39]} 24... Kh8 {[%clk 0:00:03.9]} 25. Qh7#
{[%clk 0:00:38.8]} 1-0

[Event "Late-Titled-Tuesday-Blitz-April-16-2024"]
[Site "Chess.com"]
[Date "2024.04.16"]
[Round "7"]
[White "trriinu"]
[Black "shirovin"]
[Result "1-0"]
[WhiteElo "2259"]
[BlackElo "2047"]
[TimeControl "180+1"]
[EndTime "15:13:44 PDT"]
[Termination "trriinu won on time"]

1. e4 {[%clk 0:02:56.6]} 1... Nf6 {[%clk 0:02:59]} 2. e5 {[%clk 0:02:56]} 2...
Nd5 {[%clk 0:02:59.6]} 3. d4 {[%clk 0:02:56.8]} 3... d6 {[%clk 0:02:59.5]} 4. c4
{[%clk 0:02:57.6]} 4... Nb6 {[%clk 0:02:59.1]} 5. exd6 {[%clk 0:02:58.5]} 5...
exd6 {[%clk 0:02:58.5]} 6. Nc3 {[%clk 0:02:59.1]} 6... Be7 {[%clk 0:02:58.8]} 7.
Bd3 {[%clk 0:02:56.3]} 7... O-O {[%clk 0:02:57.9]} 8. Be3 {[%clk 0:02:55.6]}
8... Bf6 {[%clk 0:02:52.9]} 9. a4 {[%clk 0:02:51.4]} 9... Nc6 {[%clk 0:02:52.2]}
10. a5 {[%clk 0:02:49.7]} 10... Nd7 {[%clk 0:02:51]} 11. Nge2 {[%clk 0:02:40.1]}
11... Re8 {[%clk 0:02:46.6]} 12. O-O {[%clk 0:02:40.1]} 12... Nf8 {[%clk
0:02:46.4]} 13. Nd5 {[%clk 0:02:32.1]} 13... Bg5 {[%clk 0:02:40.5]} 14. Nef4
{[%clk 0:02:26.9]} 14... Ng6 {[%clk 0:02:14]} 15. Qh5 {[%clk 0:02:09]} 15...
Bxf4 {[%clk 0:01:51.2]} 16. Nxf4 {[%clk 0:02:07]} 16... Qf6 {[%clk 0:01:36.3]}
17. Nd5 {[%clk 0:01:58.6]} 17... Qd8 {[%clk 0:01:35.2]} 18. Bg5 {[%clk
0:01:55.2]} 18... Qd7 {[%clk 0:01:24.1]} 19. Rfe1 {[%clk 0:01:43.6]} 19... Rxe1+
{[%clk 0:01:03.8]} 20. Rxe1 {[%clk 0:01:42.9]} 20... b6 {[%clk 0:00:48]} 21. f4
{[%clk 0:01:05.5]} 21... Bb7 {[%clk 0:00:40.8]} 22. f5 {[%clk 0:01:05.9]} 22...
Nf8 {[%clk 0:00:38]} 23. f6 {[%clk 0:00:52.9]} 23... Ng6 {[%clk 0:00:33.8]} 24.
fxg7 {[%clk 0:00:51.6]} 24... Re8 {[%clk 0:00:28.5]} 25. Nf6+ {[%clk 0:00:49.1]}
25... Kxg7 {[%clk 0:00:19.6]} 26. Qh6+ {[%clk 0:00:49]} 26... Kh8 {[%clk
0:00:18.9]} 27. Rxe8+ {[%clk 0:00:47.9]} 27... Qxe8 {[%clk 0:00:18.2]} 28. Nxe8
{[%clk 0:00:47.8]} 1-0

[Event "Late-Titled-Tuesday-Blitz-April-16-2024"]
[Site "Chess.com"]
[Date "2024.04.16"]
[Round "7"]
[White "eljanov"]
[Black "ellatambien"]
[Result "1-0"]
[WhiteElo "2901"]
[BlackElo "2722"]
[TimeControl "180+1"]
[EndTime "15:13:45 PDT"]
[Termination "eljanov won on time"]

1. d4 {[%clk 0:03:00.9]} 1... Nf6 {[%clk 0:02:59.3]} 2. Bf4 {[%clk 0:03:00.4]}
2... d5 {[%clk 0:02:58.4]} 3. e3 {[%clk 0:03:00.4]} 3... c5 {[%clk 0:02:58.7]}
4. Nf3 {[%clk 0:02:59.9]} 4... Nc6 {[%clk 0:02:58.8]} 5. Nbd2 {[%clk 0:03:00.4]}
5... Nh5 {[%clk 0:02:58.2]} 6. dxc5 {[%clk 0:02:54.5]} 6... Nxf4 {[%clk
0:02:58.1]} 7. exf4 {[%clk 0:02:55]} 7... g6 {[%clk 0:02:58.7]} 8. c3 {[%clk
0:02:53.8]} 8... Bh6 {[%clk 0:02:58.2]} 9. g3 {[%clk 0:02:53.3]} 9... O-O {[%clk
0:02:57.3]} 10. Bg2 {[%clk 0:02:49.6]} 10... b6 {[%clk 0:02:57.1]} 11. cxb6
{[%clk 0:02:31.9]} 11... Qxb6 {[%clk 0:02:58]} 12. Nb3 {[%clk 0:02:32.1]} 12...
a5 {[%clk 0:02:56.4]} 13. Qd2 {[%clk 0:02:29.9]} 13... e5 {[%clk 0:02:49.3]} 14.
O-O {[%clk 0:02:27.7]} 14... exf4 {[%clk 0:02:49.3]} 15. Nbd4 {[%clk 0:02:15.9]}
15... Nxd4 {[%clk 0:01:58.8]} 16. Nxd4 {[%clk 0:02:15.5]} 16... Be6 {[%clk
0:01:53.4]} 17. Rfe1 {[%clk 0:02:08.6]} 17... Rab8 {[%clk 0:01:51.5]} 18. Nxe6
{[%clk 0:01:54.4]} 18... fxe6 {[%clk 0:01:50.9]} 19. Rxe6 {[%clk 0:01:55]} 19...
Qxb2 {[%clk 0:01:30.6]} 20. Qxb2 {[%clk 0:01:55.1]} 20... Rxb2 {[%clk 0:01:29]}
21. Bxd5 {[%clk 0:01:55.7]} 21... Kh8 {[%clk 0:01:28.6]} 22. g4 {[%clk
0:01:56.3]} 22... Bg7 {[%clk 0:01:23.8]} 23. Rc1 {[%clk 0:01:48.6]} 23... a4
{[%clk 0:01:17.4]} 24. Ra6 {[%clk 0:01:43.5]} 24... Rd2 {[%clk 0:01:17.1]} 25.
Be6 {[%clk 0:01:35.8]} 25... Re8 {[%clk 0:01:05.1]} 26. Kg2 {[%clk 0:01:35.2]}
26... h5 {[%clk 0:00:54.3]} 27. gxh5 {[%clk 0:01:28.8]} 27... gxh5 {[%clk
0:00:54.1]} 28. Bf5 {[%clk 0:01:23]} 28... Rf8 {[%clk 0:00:38]} 29. Be4 {[%clk
0:01:21.1]} 29... Rxa2 {[%clk 0:00:34.3]} 30. Kf3 {[%clk 0:01:20.9]} 30... Ra3
{[%clk 0:00:30.1]} 31. Rc6 {[%clk 0:01:18.4]} 31... Rb3 {[%clk 0:00:28.3]} 32.
Bd5 {[%clk 0:01:15.9]} 32... Rb5 {[%clk 0:00:25.8]} 33. Bc4 {[%clk 0:01:15.2]}
33... Ra5 {[%clk 0:00:22.5]} 34. Rc7 {[%clk 0:01:13.5]} 34... a3 {[%clk
0:00:22.5]} 35. Rg1 {[%clk 0:01:12.2]} 35... Bxc3 {[%clk 0:00:21.4]} 36. Rg6
{[%clk 0:01:08.6]} 1-0

[Event "Late-Titled-Tuesday-Blitz-April-16-2024"]
[Site "Chess.com"]
[Date "2024.04.16"]
[Round "7"]
[White "ArchibaldCerveza29"]
[Black "Harry_Rakkel"]
[Result "0-1"]
[WhiteElo "2378"]
[BlackElo "2719"]
[TimeControl "180+1"]
[EndTime "15:13:50 PDT"]
[Termination "Harry_Rakkel won on time"]

1. e4 {[%clk 0:03:00.9]} 1... c5 {[%clk 0:02:59.2]} 2. c3 {[%clk 0:03:00.7]}
2... Nf6 {[%clk 0:02:57.9]} 3. e5 {[%clk 0:03:00.7]} 3... Nd5 {[%clk 0:02:57.8]}
4. d4 {[%clk 0:03:01.3]} 4... cxd4 {[%clk 0:02:56.9]} 5. Nf3 {[%clk 0:03:01.3]}
5... e6 {[%clk 0:02:54.8]} 6. cxd4 {[%clk 0:03:01.6]} 6... d6 {[%clk 0:02:54.5]}
7. Nc3 {[%clk 0:03:01.2]} 7... Nxc3 {[%clk 0:02:52.9]} 8. bxc3 {[%clk
0:03:02.1]} 8... Nd7 {[%clk 0:02:51.2]} 9. exd6 {[%clk 0:02:53.7]} 9... Bxd6
{[%clk 0:02:49.7]} 10. Bd3 {[%clk 0:02:54.3]} 10... Qc7 {[%clk 0:02:45.2]} 11.
O-O {[%clk 0:02:52.3]} 11... O-O {[%clk 0:02:36.6]} 12. Qe1 {[%clk 0:02:38.9]}
12... g6 {[%clk 0:02:33.2]} 13. Bh6 {[%clk 0:02:36.7]} 13... Re8 {[%clk
0:02:30.4]} 14. c4 {[%clk 0:02:33.3]} 14... b6 {[%clk 0:02:29]} 15. Qe4 {[%clk
0:02:27.1]} 15... Bb7 {[%clk 0:02:27.4]} 16. Qg4 {[%clk 0:02:23.7]} 16... Bxf3
{[%clk 0:02:16.7]} 17. Qxf3 {[%clk 0:02:22.2]} 17... Bxh2+ {[%clk 0:02:16.1]}
18. Kh1 {[%clk 0:02:20.3]} 18... Bd6 {[%clk 0:02:17]} 19. Rae1 {[%clk
0:02:10.9]} 19... Qd8 {[%clk 0:02:09.1]} 20. g3 {[%clk 0:02:02.3]} 20... Qf6
{[%clk 0:02:08.1]} 21. Qg4 {[%clk 0:02:00.5]} 21... Bf8 {[%clk 0:01:46.7]} 22.
Bg5 {[%clk 0:01:58.2]} 22... Qg7 {[%clk 0:01:46.8]} 23. Kg2 {[%clk 0:01:56.3]}
23... h6 {[%clk 0:01:45.4]} 24. Bd2 {[%clk 0:01:46.4]} 24... Rad8 {[%clk
0:01:44.2]} 25. Rh1 {[%clk 0:01:41.6]} 25... h5 {[%clk 0:01:40.4]} 26. Qh4
{[%clk 0:01:22.3]} 26... Nc5 {[%clk 0:01:33.8]} 27. dxc5 {[%clk 0:00:11.6]}
27... Rxd3 {[%clk 0:01:32.5]} 28. Be3 {[%clk 0:00:12.2]} 28... Bxc5 {[%clk
0:01:31.9]} 29. Bxc5 {[%clk 0:00:12.3]} 29... bxc5 {[%clk 0:01:32.8]} 30. Re4
{[%clk 0:00:10.7]} 30... Rb8 {[%clk 0:01:26.3]} 31. g4 {[%clk 0:00:08.7]} 31...
Rb2 {[%clk 0:01:20.1]} 32. gxh5 {[%clk 0:00:08.6]} 32... Rdd2 {[%clk 0:01:17.2]}
33. Rf4 {[%clk 0:00:05.5]} 33... g5 {[%clk 0:01:02.3]} 34. h6 {[%clk 0:00:05.7]}
34... Qg6 {[%clk 0:00:57.3]} 35. h7+ {[%clk 0:00:05.6]} 35... Kh8 {[%clk
0:00:57.5]} 0-1

[Event "Late-Titled-Tuesday-Blitz-April-16-2024"]
[Site "Chess.com"]
[Date "2024.04.16"]
[Round "7"]
[White "HipsterChess22"]
[Black "maurovargas01"]
[Result "1-0"]
[WhiteElo "2238"]
[BlackElo "1897"]
[TimeControl "180+1"]
[EndTime "15:13:51 PDT"]
[Termination "HipsterChess22 won on time"]

1. d4 {[%clk 0:02:59.7]} 1... c6 {[%clk 0:03:00.8]} 2. Nc3 {[%clk 0:02:57.6]}
2... d5 {[%clk 0:03:01.7]} 3. Bf4 {[%clk 0:02:55.3]} 3... e6 {[%clk 0:03:02.6]}
4. a3 {[%clk 0:02:53.3]} 4... f5 {[%clk 0:02:23.1]} 5. e3 {[%clk 0:02:47.3]}
5... Nf6 {[%clk 0:01:57.1]} 6. Nf3 {[%clk 0:02:32.2]} 6... Bd6 {[%clk
0:01:55.8]} 7. Bd3 {[%clk 0:02:24.4]} 7... O-O {[%clk 0:01:46]} 8. O-O {[%clk
0:02:21.2]} 8... Ne4 {[%clk 0:01:20]} 9. Ne2 {[%clk 0:02:11.6]} 9... g5 {[%clk
0:01:06.2]} 10. Bxd6 {[%clk 0:02:11.1]} 10... Qxd6 {[%clk 0:01:02.8]} 11. Bxe4
{[%clk 0:02:05.5]} 11... fxe4 {[%clk 0:00:50.4]} 12. Nxg5 {[%clk 0:02:05.2]}
12... h6 {[%clk 0:00:40.2]} 13. Nh3 {[%clk 0:01:59.5]} 13... e5 {[%clk
0:00:36.5]} 14. dxe5 {[%clk 0:01:57.5]} 14... Qxe5 {[%clk 0:00:36.2]} 15. Nef4
{[%clk 0:01:54.9]} 15... Qg7 {[%clk 0:00:31.9]} 16. Qh5 {[%clk 0:01:46]} 16...
Bd7 {[%clk 0:00:24.9]} 17. Qh4 {[%clk 0:01:27.3]} 17... Bf5 {[%clk 0:00:14]} 18.
c3 {[%clk 0:01:15.1]} 18... Nd7 {[%clk 0:00:12.2]} 19. Nh5 {[%clk 0:01:08.9]}
19... Qg6 {[%clk 0:00:11]} 20. N3f4 {[%clk 0:01:08.6]} 20... Qg5 {[%clk
0:00:08.8]} 21. Qg3 {[%clk 0:00:56.5]} 21... Ne5 {[%clk 0:00:05.2]} 22. Rad1
{[%clk 0:00:48.6]} 22... Kf7 {[%clk 0:00:02.2]} 23. Rd2 {[%clk 0:00:47.6]} 23...
Rg8 {[%clk 0:00:01.2]} 24. Qxg5 {[%clk 0:00:39.8]} 1-0

[Event "Late-Titled-Tuesday-Blitz-April-16-2024"]
[Site "Chess.com"]
[Date "2024.04.16"]
[Round "7"]
[White "JiangoFett"]
[Black "CarlosjPineror"]
[Result "0-1"]
[WhiteElo "2545"]
[BlackElo "2697"]
[TimeControl "180+1"]
[EndTime "15:13:53 PDT"]
[Termination "CarlosjPineror won on time"]

1. d4 {[%clk 0:03:00.9]} 1... Nf6 {[%clk 0:02:59.6]} 2. c4 {[%clk 0:03:00.7]}
2... d6 {[%clk 0:03:00]} 3. Nf3 {[%clk 0:02:52.6]} 3... g6 {[%clk 0:02:59.3]} 4.
e3 {[%clk 0:02:52.4]} 4... Bg7 {[%clk 0:02:59.1]} 5. Be2 {[%clk 0:02:52.8]} 5...
O-O {[%clk 0:02:59.4]} 6. O-O {[%clk 0:02:52.9]} 6... c5 {[%clk 0:03:00.3]} 7.
d5 {[%clk 0:02:51.7]} 7... b5 {[%clk 0:02:59.2]} 8. cxb5 {[%clk 0:02:52.6]} 8...
a6 {[%clk 0:03:00.1]} 9. Nc3 {[%clk 0:02:50.6]} 9... Nbd7 {[%clk 0:02:57.1]} 10.
Nd2 {[%clk 0:02:46.9]} 10... axb5 {[%clk 0:02:54.1]} 11. Bxb5 {[%clk 0:02:46.2]}
11... Ba6 {[%clk 0:02:51.3]} 12. Nc4 {[%clk 0:02:36.2]} 12... Ne4 {[%clk
0:02:36.1]} 13. Bxa6 {[%clk 0:02:05]} 13... Nxc3 {[%clk 0:02:31.8]} 14. bxc3
{[%clk 0:02:04.3]} 14... Rxa6 {[%clk 0:02:32.7]} 15. Qd3 {[%clk 0:01:47.2]}
15... Qa8 {[%clk 0:02:24.6]} 16. a3 {[%clk 0:01:39.9]} 16... Rb8 {[%clk
0:02:15.2]} 17. Bd2 {[%clk 0:01:13.6]} 17... Nb6 {[%clk 0:02:10.3]} 18. Nxb6
{[%clk 0:01:11.9]} 18... Rbxb6 {[%clk 0:02:07.5]} 19. Qe4 {[%clk 0:00:57.3]}
19... Bf6 {[%clk 0:02:03.2]} 20. a4 {[%clk 0:00:42]} 20... Rb2 {[%clk
0:01:54.1]} 21. Rfd1 {[%clk 0:00:35.6]} 21... Rxd2 {[%clk 0:01:40.3]} 22. Rxd2
{[%clk 0:00:36.5]} 22... Bxc3 {[%clk 0:01:40.6]} 23. Rda2 {[%clk 0:00:36.2]}
23... Bxa1 {[%clk 0:01:34.9]} 24. Rxa1 {[%clk 0:00:37.1]} 24... e6 {[%clk
0:01:35.4]} 25. Rd1 {[%clk 0:00:12.6]} 25... Rxa4 {[%clk 0:01:31.4]} 26. Qf3
{[%clk 0:00:07.7]} 26... Ra1 {[%clk 0:01:29]} 27. h4 {[%clk 0:00:02.4]} 27...
Rxd1+ {[%clk 0:01:24.2]} 28. Qxd1 {[%clk 0:00:03.3]} 28... Qxd5 {[%clk
0:01:24.3]} 29. Qa1 {[%clk 0:00:04.1]} 29... Qe5 {[%clk 0:01:20.9]} 30. Qa8+
{[%clk 0:00:03.9]} 30... Kg7 {[%clk 0:01:21.3]} 31. g3 {[%clk 0:00:04.4]} 31...
h5 {[%clk 0:01:21.9]} 32. Qd8 {[%clk 0:00:04.1]} 32... c4 {[%clk 0:01:21.3]} 33.
Qc7 {[%clk 0:00:04.4]} 33... c3 {[%clk 0:01:21.1]} 34. Kh2 {[%clk 0:00:03.2]}
34... Qf6 {[%clk 0:01:19.7]} 35. f4 {[%clk 0:00:03.3]} 35... d5 {[%clk
0:01:19.7]} 36. Qc5 {[%clk 0:00:01.8]} 36... Kh7 {[%clk 0:01:16.9]} 37. Qc7
{[%clk 0:00:01.6]} 37... Qg7 {[%clk 0:01:16.7]} 38. Kg2 {[%clk 0:00:01.7]} 38...
Kg8 {[%clk 0:01:15.8]} 39. Qc8+ {[%clk 0:00:01.8]} 39... Kh7 {[%clk 0:01:15.8]}
40. Qc7 {[%clk 0:00:02.7]} 40... Qf6 {[%clk 0:01:16.4]} 41. Qc8 {[%clk
0:00:02.8]} 41... Kg7 {[%clk 0:01:16.9]} 42. Qc7 {[%clk 0:00:03.1]} 42... d4
{[%clk 0:01:16.2]} 43. e4 {[%clk 0:00:01.8]} 43... e5 {[%clk 0:01:12.7]} 0-1